fUST/lending_fUST_20240705
["ID","MTS","AMOUNT","RATE_DAILY","PERIOD"]
[331211584,1720134666839,-1799.29,0.00019452,2]
[331211585,1720134666854,-649.1,0.00019452,2]
[331211586,1720134666867,-5473.98,0.00019452,2]
[331211587,1720134666881,-500.0,0.00019724,2]
[331211588,1720134666897,-876.25,0.00019725,2]
[331211589,1720134666912,-718.94,0.00019725,2]
[331211590,1720134666926,-4743.66,0.00019726,2]
[331211591,1720134666940,-507.49,0.00019726,2]
[331211592,1720134666954,-321.06,0.00019726,2]
[331211593,1720134666968,-591.07,0.00019726,2]
[331211594,1720134666981,-565.12,0.00019726,2]
[331211595,1720134666995,-2421.64,0.00019726,2]
[331211596,1720134667009,-548.33,0.00019726,2]
[331211597,1720134667024,-2331.12,0.00019726,2]
[331211598,1720134667038,-535.1,0.00019726,2]
[331211599,1720134667052,-992.31,0.00019726,2]
[331211600,1720134667066,-595.54,0.00019726,2]
[331211601,1720134667081,-878.92,0.00019726,2]
[331211602,1720134667095,-2562.9,0.00019726,2]
[331211603,1720134667109,-898.22,0.00019726,2]
[331211604,1720134667123,-533.09,0.00019726,2]
[331211605,1720134667208,-1359.2,0.00019726,2]
[331211606,1720134667217,-516.68,0.00019726,2]
[331211607,1720134667227,-1799.29,0.00019726,2]
[331211608,1720134667236,-649.1,0.00019726,2]
[331211609,1720134667245,-5473.98,0.00019726,2]
[331211610,1720134667254,-372.55,0.00019998,2]
[331211611,1720134667263,-876.25,0.00019999,2]
[331211612,1720134667273,-718.94,0.00019999,2]
[331211613,1720134667282,-435.0,0.0002,2]
[331211614,1720134667291,-562.70017201,0.0002,2]
[331211615,1720134667300,-4743.7064303,0.0002,2]
[331211616,1720134667309,-507.68197146,0.0002,2]
[331211617,1720134667319,-321.19209543,0.0002,2]
[331211618,1720134667328,-591.23,0.0002,2]
[331211619,1720134667337,-565.35,0.0002,2]
[331211620,1720134667346,-2421.72,0.0002,2]
[331211621,1720134667356,-548.38198231,0.0002,2]
[331211622,1720134667365,-2331.33,0.0002,2]
[331211623,1720134667375,-535.25,0.0002,2]
[331211624,1720134667384,-992.33,0.0002,2]
[331211625,1720134667394,-595.65,0.0002,2]
[331211626,1720134667404,-879.13,0.0002,2]
[331211627,1720134667413,-2562.93,0.0002,2]
[331211628,1720134667422,-898.44,0.0002,2]
[331211629,1720134667431,-1359.39,0.0002,2]
[331211630,1720134667441,-516.84,0.0002,2]
[331211631,1720134667451,-1799.31,0.0002,2]
[331211632,1720134667461,-649.32602612,0.0002,2]
[331211633,1720134667471,-1724.33992722,0.0002,2]
[331211634,1720134667480,-5474.18551898,0.0002,2]
[331211635,1720134667490,-876.25,0.00020273,2]
[331211636,1720134667499,-718.97,0.00020273,2]
[331211637,1720134667508,-1352.712539,0.00020548,2]
[331211638,1720134667517,-750.0,0.00021096,2]
[331211639,1720134667526,-3000.0,0.000215,2]
[331211640,1720134667535,-3000.0,0.0002151,2]
[331211641,1720134667544,-3000.0,0.0002152,2]
[331211642,1720134667553,-3000.0,0.0002153,2]
[331211643,1720134667562,-3000.0,0.0002154,2]
[331211644,1720134667572,-3000.0,0.0002155,2]
[331211645,1720134667581,-3000.0,0.0002156,2]
[331211646,1720134667595,-3000.0,0.0002157,2]
[331211647,1720134667604,-3000.0,0.0002158,2]
[331211648,1720134667612,-3000.0,0.0002159,2]
[331211649,1720134667622,-3000.0,0.000216,2]
[331211650,1720134667633,-3000.0,0.0002161,2]
[331211651,1720134667643,-3000.0,0.0002162,2]
[331211652,1720134667653,-3000.0,0.0002163,2]
[331211653,1720134667663,-3000.0,0.0002164,2]
[331211654,1720134667674,-3000.0,0.0002165,2]
[331211655,1720134667683,-3000.0,0.0002166,2]
[331211656,1720134667692,-3000.0,0.0002167,2]
[331211657,1720134667701,-3000.0,0.0002168,2]
[331211658,1720134667712,-3000.0,0.0002169,2]
[331211659,1720134667721,-3000.0,0.000217,2]
[331211660,1720134667731,-3000.0,0.0002171,2]
[331211661,1720134667740,-3000.0,0.0002172,2]
[331211662,1720134667749,-3000.0,0.0002173,2]
[331211663,1720134667758,-3000.0,0.0002174,2]
[331211664,1720134667766,-3000.0,0.0002175,2]
[331211665,1720134667775,-3000.0,0.0002176,2]
[331211666,1720134667786,-3000.0,0.0002177,2]
[331211667,1720134667795,-3000.0,0.0002178,2]
[331211668,1720134667804,-3000.0,0.0002179,2]
[331211669,1720134667814,-3000.0,0.000218,2]
[331211670,1720134667824,-3000.0,0.0002181,2]
[331211671,1720134667834,-3000.0,0.0002182,2]
[331211672,1720134667846,-3000.0,0.0002183,2]
[331211673,1720134667855,-3000.0,0.0002184,2]
[331211674,1720134667866,-3000.0,0.0002185,2]
[331211675,1720134667876,-3000.0,0.0002186,2]
[331211676,1720134667885,-3000.0,0.0002187,2]
[331211677,1720134667894,-3000.0,0.0002188,2]
[331211678,1720134667904,-3000.0,0.0002189,2]
[331211679,1720134667913,-3000.0,0.000219,2]
[331211680,1720134667922,-3000.0,0.0002191,2]
[331211681,1720134667932,-500.0,0.00021917,2]
[331211682,1720134667942,-500.0,0.00021917,2]
[331211683,1720134667951,-500.0,0.00021917,2]
[331211684,1720134667961,-500.0,0.00021917,2]
[331211685,1720134667970,-500.0,0.00021917,2]
[331211686,1720134667981,-500.0,0.00021917,2]
[331211687,1720134667991,-500.0,0.00021917,2]
[331211688,1720134668001,-500.0,0.00021917,2]
[331211689,1720134668011,-500.0,0.00021917,2]
[331211690,1720134668022,-3000.0,0.0002192,2]
[331211691,1720134668032,-3000.0,0.0002193,2]
[331211692,1720134668041,-3000.0,0.0002194,2]
[331211693,1720134668051,-3000.0,0.0002195,2]
[331211694,1720134668061,-3000.0,0.0002196,2]
[331211695,1720134668071,-3000.0,0.0002197,2]
[331211696,1720134668081,-3000.0,0.0002198,2]
[331211697,1720134668090,-3000.0,0.0002199,2]
[331211698,1720134668147,-3000.0,0.00022,2]
[331211699,1720134668160,-3000.0,0.0002201,2]
[331211700,1720134668170,-3000.0,0.0002202,2]
[331211701,1720134668178,-3000.0,0.0002203,2]
[331211702,1720134668188,-3000.0,0.0002204,2]
[331211703,1720134668196,-3000.0,0.0002205,2]
[331211704,1720134668206,-3000.0,0.0002206,2]
[331211705,1720134668214,-3000.0,0.0002207,2]
[331211706,1720134668223,-3000.0,0.0002208,2]
[331211707,1720134668233,-3000.0,0.0002209,2]
[331211708,1720134668243,-3000.0,0.000221,2]
[331211709,1720134668253,-3000.0,0.0002211,2]
[331211710,1720134668261,-3000.0,0.0002212,2]
[331211711,1720134668272,-3315.03251,0.0002213,2]
[331211712,1720134668281,-164.371,0.00022458,2]
[331211713,1720134668290,-158.246,0.00022458,2]
[331211714,1720134668299,-877.0,0.00022517,2]
[331211715,1720134668307,-150.0,0.00022747,2]
[331211716,1720134668317,-3967.17519888,0.00022941,2]
[331211717,1720134668327,-150.90270468,0.00023007,2]
[331211718,1720134668336,-150.90270468,0.0002302,2]
[331211719,1720134668347,-156.27759996,0.00023286,2]
[331211720,1720134668356,-152.47480697,0.00023355,2]
[331211721,1720134668365,-150.90270468,0.00023365,2]
[331211722,1720134668375,-150.90270468,0.00023435,2]
[331211723,1720134668384,-166.76986611,0.00023441,2]
[331211724,1720134668393,-150.90270468,0.00023442,2]
[331211725,1720134668403,-150.90270468,0.00023481,2]
[331211726,1720134668412,-152.47480697,0.00023562,2]
[331211727,1720134668421,-150.90270468,0.00023579,2]
[331211728,1720134668431,-166.76986611,0.00023686,2]
[331211729,1720134668440,-150.90270468,0.00023879,2]
[331211730,1720134668450,-150.90270468,0.00023958,2]
[331211731,1720134668460,-166.76986611,0.00023997,2]
[331211732,1720134668469,-166.76986611,0.00024016,2]
[331211733,1720134668478,-166.76986611,0.00024344,2]
[331211734,1720134668487,-150.90270468,0.00024465,2]
[331211735,1720134668496,-150.90270468,0.00024584,2]
[331211736,1720134668506,-150.90270468,0.00024592,2]
[331211737,1720134668515,-200.0,0.00024657,7]
[331211738,1720134668524,-200.0,0.00024658,15]
[331211739,1720134668533,-380.0,0.00024658,2]
[331211740,1720134668542,-150.90270468,0.00024702,2]
[331211741,1720134668551,-150.90270468,0.00024776,2]
[331211742,1720134668560,-166.76986614,0.00024845,2]
[331211743,1720134668569,-150.90270468,0.00024939,2]
[331211744,1720134668578,-156.27759996,0.00024988,2]
[331211745,1720134668589,-150.90270483,0.00024993,2]
[331211746,1720134668601,-150.0,0.00025458,2]
[331211747,1720134668610,-150.0,0.00025458,2]
[331211748,1720134668620,-4817.72672932,0.00025501,2]
[331211749,1720134668739,-625.44716545,0.00025501,2]
[331211750,1720134668790,-6986.23838379,0.00025501,2]
[331211751,1720134668803,-1025.39492162,0.00025501,2]
[331211752,1720134668814,-4412.82886566,0.00025501,2]
[331211753,1720134673352,-1847.64465184,0.00025501,2]
[331211754,1720134673504,-500.0,0.00013698,2]
[331211755,1720134673514,-500.0,0.00013971,2]
[331211756,1720134673525,-500.0,0.00013972,2]
[331211757,1720134673535,-500.0,0.00014246,2]
[331211758,1720134673544,-674.64,0.0001452,2]
[331211759,1720134673554,-500.0,0.0001452,2]
[331211760,1720134673563,-674.64,0.00014794,2]
[331211761,1720134673573,-500.0,0.00014794,2]
[331211762,1720134673582,-550.5788766,0.00015068,2]
[331211763,1720134673596,-124.0611234,0.00015068,2]
[331211764,1720134673607,-500.0,0.00015068,2]
[331211765,1720134673617,-500.0,0.0001534,2]
[331211766,1720134673626,-674.64,0.00015342,2]
[331211767,1720134673635,-674.64,0.00015616,2]
[331211768,1720134673645,-4133.87,0.00016986,2]
[331211769,1720134673658,-45429.69880828,0.00025501,2]
[331211770,1720134673670,-23985.26766813,0.00025501,2]
[331211771,1720134673940,-500.0,0.00013698,2]
[331211772,1720134673949,-501.62237539,0.00013698,2]
[331211773,1720134673958,-500.0,0.00013972,2]
[331211774,1720134673968,-500.0,0.00014245,2]
[331211775,1720134673978,-457.69120518,0.00014519,2]
[331211776,1720134673988,-500.0,0.00015342,2]
[331211777,1720134673998,-500.0,0.00015616,2]
[331211778,1720134674007,-674.64,0.0001589,2]
[331211779,1720134674017,-500.0,0.0001589,2]
[331211780,1720134674027,-674.64,0.00016164,2]
[331211781,1720134674036,-500.0,0.00016164,2]
[331211782,1720134674046,-674.64,0.00016438,2]
[331211783,1720134674055,-284.43948182,0.00016438,2]
[331211784,1720134674067,-215.56051818,0.00016438,2]
[331211785,1720134674077,-674.64,0.00016712,2]
[331211786,1720134674086,-500.0,0.00016712,2]
[331211787,1720134674095,-674.64,0.00016986,2]
[331211788,1720134674104,-321.23423038,0.00016986,2]
[331211789,1720134674319,-389.89421914,0.00013698,2]
[331211790,1720134720766,267.24611504,0.00010959,2]
[331211791,1720134720788,482.62388496,0.00010959,2]
[331211792,1720134871173,155.06488944,9.999e-05,2]
[331211793,1720134937390,159.35965211,9.999e-05,2]
[331211794,1720134972702,195.38427408,0.0001,2]
[331211796,1720135059814,201.59281691,0.0001,2]
[331211797,1720135188702,206.82506441,0.0001,2]
[331211798,1720135293794,206.82506441,0.0001,2]
[331211799,1720135492732,587.78939878,9.999e-05,2]
[331211800,1720135541139,-300.0,0.0001267,2]
[331211801,1720135541159,-135.75042649,0.0001267,2]
[331211804,1720135756157,-164.0,0.0001267,2]
[331211805,1720135756177,-7966.68588354,0.00012671,2]
[331211806,1720135756397,-16933.31411646,0.00012671,2]
[331211807,1720135756443,-1730.46955086,0.00013598,2]
[331211808,1720135756488,-3055.44531736,0.00013598,2]
[331211809,1720135756536,-76052.2217667,0.00013688,2]
[331211810,1720135756580,-500.0,0.00013698,2]
[331211811,1720135756623,-500.0,0.00013698,2]
[331211812,1720135756668,-500.0,0.00013698,2]
[331211813,1720135756714,-640.04,0.00013698,2]
[331211814,1720135756761,-330.94553613,0.00013698,2]
[331211815,1720135756807,-500.0,0.00013698,2]
[331211816,1720135756855,-734.64,0.00013698,2]
[331211817,1720135756904,-734.64,0.00013698,2]
[331211818,1720135756950,-500.0,0.00013698,2]
[331211819,1720135757000,-347.15373059,0.00013698,2]
[331211820,1720135758238,-503.06279149,0.00013698,2]
[331211821,1720135758258,-500.0,0.00013698,2]
[331211822,1720135758278,-500.0,0.00013698,2]
[331211823,1720135758301,-500.0,0.00013698,2]
[331211824,1720135758322,-501.83450842,0.00013698,2]
[331211825,1720135758343,-500.0,0.00013698,2]
[331211826,1720135758363,-500.0,0.00013698,2]
[331211827,1720135758386,-500.0,0.00013698,2]
[331211828,1720135758407,-500.0,0.00013698,2]
[331211829,1720135758429,-500.0,0.00013698,2]
[331211830,1720135758450,-530.12306871,0.00013698,2]
[331211831,1720135758474,-500.0,0.00013698,2]
[331211832,1720135758494,-500.0,0.00013698,2]
[331211833,1720135758515,-227.36894435,0.00013698,2]
[331211834,1720135758696,-506.19410695,0.00013698,2]
[331211835,1720135758717,-501.81491948,0.00013698,2]
[331211836,1720135758738,-500.0,0.00013698,2]
[331211837,1720135758761,-500.0,0.00013698,2]
[331211838,1720135758781,-500.0,0.00013698,2]
[331211839,1720135758802,-500.0,0.00013698,2]
[331211840,1720135758822,-500.0,0.00013698,2]
[331211841,1720135758843,-500.0,0.00013698,2]
[331211842,1720135758863,-500.0,0.00013698,2]
[331211843,1720135758884,-500.0,0.00013698,2]
[331211844,1720135758904,-500.0,0.00013698,2]
[331211845,1720135758923,-500.0,0.00013698,2]
[331211846,1720135758944,-500.0,0.00013698,2]
[331211847,1720135758966,-500.0,0.00013698,2]
[331211848,1720135758986,-500.0,0.00013698,2]
[331211849,1720135759007,-500.0,0.00013698,2]
[331211850,1720135759030,-500.0,0.00013698,2]
[331211851,1720135759052,-504.21709346,0.00013698,2]
[331211852,1720135759072,-168.12840287,0.00013698,2]
[331211853,1720135759092,-500.0,0.00013698,2]
[331211854,1720135759111,-500.0,0.00013698,2]
[331211855,1720135759131,-500.0,0.00013698,2]
[331211856,1720135759151,-309.7057795,0.00013698,2]
[331211857,1720135759170,-503.25376961,0.00013698,2]
[331211858,1720135759190,-500.0,0.00013698,2]
[331211859,1720135759209,-500.0,0.00013698,2]
[331211860,1720135759228,-500.0,0.00013698,2]
[331211861,1720135759248,-500.0,0.00013698,2]
[331211862,1720135759269,-500.0,0.00013698,2]
[331211863,1720135759290,-500.0,0.00013698,2]
[331211864,1720135759310,-500.0,0.00013698,2]
[331211865,1720135759330,-500.0,0.00013698,2]
[331211866,1720135759355,-500.0,0.00013698,2]
[331211867,1720135759375,-510.74775174,0.00013698,2]
[331211868,1720135759394,-500.0,0.00013698,2]
[331211869,1720135759415,-500.0,0.00013698,2]
[331211870,1720135759434,-500.0,0.00013698,2]
[331211871,1720135759453,-505.36214824,0.00013698,2]
[331211872,1720135759472,-500.58124988,0.00013698,2]
[331211873,1720135759491,-500.0,0.00013698,2]
[331211874,1720135759511,-500.0,0.00013698,2]
[331211875,1720135759531,-500.0,0.00013698,2]
[331211876,1720135759553,-337.9361271,0.00013698,2]
[331211877,1720135759573,-500.0,0.00013698,2]
[331211878,1720135759593,-500.0,0.00013698,2]
[331211879,1720135759613,-500.0,0.00013698,2]
[331211880,1720135759632,-500.42170953,0.00013698,2]
[331211881,1720135759653,-500.0,0.00013698,2]
[331211882,1720135759672,-502.50411365,0.00013698,2]
[331211883,1720135759691,-500.0,0.00013698,2]
[331211884,1720135759710,-206.8942728,0.00013698,2]
[331211885,1720135759730,-500.0,0.00013698,2]
[331211886,1720135759750,-500.0,0.00013698,2]
[331211887,1720135759771,-500.0,0.00013698,2]
[331211888,1720135759792,-500.0,0.00013698,2]
[331211889,1720135759812,-500.0,0.00013698,2]
[331211890,1720135759834,-500.0,0.00013698,2]
[331211891,1720135759855,-503.73148546,0.00013698,2]
[331211892,1720135759876,-500.0,0.00013698,2]
[331211893,1720135759895,-500.0,0.00013698,2]
[331211894,1720135759915,-500.0,0.00013698,2]
[331211895,1720135759935,-500.0,0.00013698,2]
[331211896,1720135759960,-500.0,0.00013698,2]
[331211897,1720135759979,-500.0,0.00013698,2]
[331211898,1720135759999,-500.0,0.00013698,2]
[331211899,1720135760021,-500.0,0.00013698,2]
[331211900,1720135760045,-500.0,0.00013698,2]
[331211901,1720135760067,-500.0,0.00013698,2]
[331211902,1720135760088,-500.0,0.00013698,2]
[331211903,1720135760108,-500.0,0.00013698,2]
[331211904,1720135760129,-500.0,0.00013698,2]
[331211905,1720135760148,-500.0,0.00013698,2]
[331211906,1720135760167,-500.0,0.00013698,2]
[331211907,1720135760186,-500.0,0.00013698,2]
[331211908,1720135760204,-184.24069671,0.00013698,2]
[331211909,1720135760225,-500.0,0.00013698,2]
[331211910,1720135760244,-500.0,0.00013698,2]
[331211911,1720135760263,-500.0,0.00013698,2]
[331211912,1720135760284,-500.0,0.00013698,2]
[331211913,1720135760309,-500.0,0.00013698,2]
[331211914,1720135760334,-500.0,0.00013698,2]
[331211915,1720135760357,-180.83,0.00013698,2]
[331211916,1720135760378,-500.0,0.00013698,2]
[331211917,1720135760397,-501.68919144,0.00013698,2]
[331211918,1720135760418,-500.0,0.00013698,2]
[331211919,1720135760439,-500.0,0.00013698,2]
[331211920,1720135760460,-500.0,0.00013698,2]
[331211921,1720135760481,-267.24611504,0.00013698,2]
[331211922,1720135760501,-500.0,0.00013698,2]
[331211923,1720135760521,-500.0,0.00013698,2]
[331211924,1720135760544,-500.0,0.00013698,2]
[331211925,1720135760564,-163.06139296,0.00013698,2]
[331211926,1720135760584,-500.0,0.00013698,2]
[331211927,1720135760605,-500.0,0.00013698,2]
[331211928,1720135760625,-500.0,0.00013698,2]
[331211929,1720135760646,-500.0,0.00013698,2]
[331211930,1720135760665,-500.0,0.00013698,2]
[331211931,1720135760688,-500.0,0.00013698,2]
[331211932,1720135760708,-512.5664214,0.00013698,2]
[331211933,1720135760729,-500.0,0.00013698,2]
[331211934,1720135760749,-500.0,0.00013698,2]
[331211935,1720135760771,-500.0,0.00013698,2]
[331211936,1720135760797,-500.0,0.00013698,2]
[331211937,1720135760817,-500.0,0.00013698,2]
[331211938,1720135760845,-500.0,0.00013698,2]
[331211939,1720135760866,-576.37770796,0.00013698,2]
[331211940,1720135760886,-341.3812558,0.00013698,2]
[331211941,1720135760905,-508.9591841,0.00013698,2]
[331211942,1720135760925,-500.0,0.00013698,2]
[331211943,1720135760947,-500.0,0.00013698,2]
[331211944,1720135760972,-500.0,0.00013698,2]
[331211945,1720135760992,-295.42112033,0.00013698,2]
[331211946,1720135761012,-500.0,0.00013698,2]
[331211947,1720135761031,-500.0,0.00013698,2]
[331211948,1720135761055,-508.00217477,0.00013698,2]
[331211949,1720135761077,-502.93493318,0.00013698,2]
[331211950,1720135761097,-500.0,0.00013698,2]
[331211951,1720135761118,-500.0,0.00013698,2]
[331211952,1720135761141,-500.0,0.00013698,2]
[331211953,1720135761163,-500.0,0.00013698,2]
[331211954,1720135761184,-500.0,0.00013698,2]
[331211955,1720135761207,-500.0,0.00013698,2]
[331211956,1720135761228,-500.0,0.00013698,2]
[331211957,1720135761248,-500.0,0.00013698,2]
[331211958,1720135761270,-500.0,0.00013698,2]
[331211959,1720135761293,-500.0,0.00013698,2]
[331211960,1720135761316,-500.0,0.00013698,2]
[331211961,1720135761338,-500.0,0.00013698,2]
[331211962,1720135761358,-503.71033226,0.00013698,2]
[331211963,1720135761382,-500.0,0.00013698,2]
[331211964,1720135761404,-500.0,0.00013698,2]
[331211965,1720135761426,-500.0,0.00013698,2]
[331211966,1720135761446,-500.0,0.00013698,2]
[331211967,1720135761466,-500.0,0.00013698,2]
[331211968,1720135761486,-500.0,0.00013698,2]
[331211969,1720135761507,-500.0,0.00013698,2]
[331211970,1720135761528,-500.0,0.00013698,2]
[331211971,1720135761551,-500.0,0.00013698,2]
[331211972,1720135761572,-501.51636752,0.00013698,2]
[331211973,1720135761591,-513.22248676,0.00013698,2]
[331211974,1720135761612,-500.0,0.00013698,2]
[331211975,1720135761633,-500.0,0.00013698,2]
[331211976,1720135761654,-500.0,0.00013698,2]
[331211977,1720135761674,-500.0,0.00013698,2]
[331211978,1720135761696,-500.0,0.00013698,2]
[331211979,1720135761716,-500.0,0.00013698,2]
[331211980,1720135761736,-507.82319642,0.00013698,2]
[331211981,1720135761757,-500.0,0.00013698,2]
[331211982,1720135761778,-500.0,0.00013698,2]
[331211983,1720135761801,-500.0,0.00013698,2]
[331211984,1720135761822,-528.15327025,0.00013698,2]
[331211985,1720135761845,-500.0,0.00013698,2]
[331211986,1720135761866,-500.0,0.00013698,2]
[331211987,1720135761887,-500.0,0.00013698,2]
[331211988,1720135761908,-500.0,0.00013698,2]
[331211989,1720135761928,-500.0,0.00013698,2]
[331211990,1720135761953,-500.0,0.00013698,2]
[331211991,1720135761973,-500.0,0.00013698,2]
[331211992,1720135761995,-500.0,0.00013698,2]
[331211993,1720135762016,-500.0,0.00013698,2]
[331211994,1720135762040,-500.0,0.00013698,2]
[331211995,1720135762061,-500.0,0.00013698,2]
[331211996,1720135762083,-500.0,0.00013698,2]
[331211997,1720135762104,-500.0,0.00013698,2]
[331211998,1720135762127,-500.0,0.00013698,2]
[331211999,1720135762147,-501.51090296,0.00013698,2]
[331212000,1720135762167,-500.0,0.00013698,2]
[331212001,1720135762188,-500.0,0.00013698,2]
[331212002,1720135762208,-500.0,0.00013698,2]
[331212003,1720135762229,-500.0,0.00013698,2]
[331212004,1720135762251,-500.0,0.00013698,2]
[331212005,1720135762272,-500.0,0.00013698,2]
[331212006,1720135762409,-500.0,0.00013698,2]
[331212007,1720135762432,-500.0,0.00013698,2]
[331212008,1720135762453,-500.0,0.00013698,2]
[331212009,1720135762473,-500.0,0.00013698,2]
[331212010,1720135762494,-500.0,0.00013698,2]
[331212011,1720135762515,-500.0,0.00013698,2]
[331212012,1720135762535,-500.0,0.00013698,2]
[331212013,1720135762557,-500.0,0.00013698,2]
[331212014,1720135762578,-500.0,0.00013698,2]
[331212015,1720135762599,-500.0,0.00013698,2]
[331212016,1720135762620,-500.0,0.00013698,2]
[331212017,1720135762640,-513.99284798,0.00013698,2]
[331212018,1720135762660,-501.50568853,0.00013698,2]
[331212019,1720135762681,-500.0,0.00013698,2]
[331212020,1720135762701,-500.0,0.00013698,2]
[331212021,1720135762722,-500.0,0.00013698,2]
[331212022,1720135762742,-500.0,0.00013698,2]
[331212023,1720135762763,-500.0,0.00013698,2]
[331212024,1720135762785,-500.0,0.00013698,2]
[331212025,1720135762807,-500.0,0.00013698,2]
[331212026,1720135762827,-500.0,0.00013698,2]
[331212027,1720135762853,-424.79625009,0.00013698,2]
[331212028,1720135762875,-500.0,0.00013698,2]
[331212029,1720135762895,-500.0,0.00013698,2]
[331212030,1720135762921,-500.0,0.00013698,2]
[331212031,1720135762945,-504.75226651,0.00013698,2]
[331212032,1720135762970,-390.93056148,0.00013698,2]
[331212099,1720135836058,-109.06943852,0.00013698,2]
[331212100,1720135836069,-500.0,0.00013698,2]
[331212101,1720135836079,-9.82680645,0.00013698,2]
[331212102,1720135836095,-2401.59319355,0.00013698,2]
[331212103,1720135836105,-500.0,0.00013698,2]
[331212104,1720135836114,-500.0,0.00013698,2]
[331212105,1720135836123,-500.0,0.00013698,2]
[331212106,1720135836133,-500.0,0.00013698,2]
[331212107,1720135836142,-500.0,0.00013698,2]
[331212108,1720135836152,-500.0,0.00013698,2]
[331212109,1720135836161,-500.0,0.00013698,2]
[331212110,1720135836171,-500.0,0.00013698,2]
[331212111,1720135836180,-500.0,0.00013698,2]
[331212112,1720135836190,-500.0,0.00013698,2]
[331212113,1720135836199,-500.0,0.00013698,2]
[331212114,1720135836209,-500.0,0.00013698,2]
[331212115,1720135836218,-500.0,0.00013698,2]
[331212116,1720135836228,-500.0,0.00013698,2]
[331212117,1720135836237,-500.0,0.00013698,2]
[331212118,1720135836247,-500.0,0.00013698,2]
[331212119,1720135836257,-500.0,0.00013698,2]
[331212120,1720135836266,-500.0,0.00013698,2]
[331212121,1720135836276,-500.0,0.00013698,2]
[331212122,1720135836285,-500.27,0.00013698,2]
[331212123,1720135836295,-500.0,0.00013698,2]
[331212124,1720135836304,-500.0,0.00013698,2]
[331212125,1720135836313,-500.0,0.00013698,2]
[331212126,1720135836323,-500.0,0.00013698,2]
[331212127,1720135836332,-500.0,0.00013698,2]
[331212128,1720135836345,-500.0,0.00013698,2]
[331212129,1720135836355,-500.0,0.00013698,2]
[331212130,1720135836364,-584.16,0.00013698,2]
[331212131,1720135836374,-500.0,0.00013698,2]
[331212132,1720135836383,-500.0,0.00013698,2]
[331212133,1720135836392,-500.0,0.00013698,2]
[331212134,1720135836413,-500.0,0.00013698,2]
[331212135,1720135836424,-503.24890876,0.00013698,2]
[331212136,1720135836434,-500.0,0.00013698,2]
[331212137,1720135836444,-500.0,0.00013698,2]
[331212138,1720135836453,-500.0,0.00013698,2]
[331212139,1720135836463,-500.0,0.00013698,2]
[331212140,1720135836473,-500.0,0.00013698,2]
[331212141,1720135836483,-500.0,0.00013698,2]
[331212142,1720135836493,-500.0,0.00013698,2]
[331212143,1720135836503,-490.90459953,0.00013698,2]
[331212189,1720135838954,-9.09540047,0.00013698,2]
[331212190,1720135838963,-579.48305805,0.00013698,2]
[331212191,1720135838973,-500.0,0.00013698,2]
[331212192,1720135838985,-500.0,0.00013698,2]
[331212193,1720135838995,-500.0,0.00013698,2]
[331212194,1720135839005,-598.33389675,0.00013698,2]
[331212195,1720135839015,-505.68958182,0.00013698,2]
[331212196,1720135839025,-500.0,0.00013698,2]
[331212197,1720135839036,-500.0,0.00013698,2]